Workbook

Sheet Attach GG Proj #1- Year 1
N4: Attachment GG
C5: Formula Rate calculation | G5: Rate Formula Template | N5: For the 12 months ended 12/31/14
G6: Utilizing Attachment O Data
N7: Page 1 of 2
G8: Montana-Dakota Utilities Co.
C10: To be completed in conjunction with Attachment O.
C13: (1) | E13: (2) | G13: (3) | L13: (4)
E14: Attachment O
A15: Line | E15: Page, Line, Col. | G15: Transmission | L15: Allocator
A16: No.
A18: 1 | C18: Gross Transmission Plant - Total | E18: Attach O, p 2, line 2 col 5 (Note A) | G18: =202858076+5562337 -> 208420413
A19: 2 | C19: Net Transmission Plant - Total | E19: Attach O, p 2, line 14 and 23a col 5 (Note B) | G19: =113922645+5562337 -> 119484982
C21: O&M EXPENSE
A22: 3 | C22: Total O&M Allocated to Transmission | E22: Attach O, p 3, line 8 col 5 | G22: 7820774
A23: 4 | C23: Annual Allocation Factor for O&M | E23: (line 3 divided by line 1 col 3) | G23: =IF(G22=0,0,G22/G18) -> 0.03752403082 | L23: =G23 -> 0.03752403082
C25: GENERAL AND COMMON (G&C) DEPRECIATION EXPENSE
A26: 5 | C26: Total G&C Depreciation Expense | E26: Attach O, p 3, lines 10 & 11, col 5 (Note H) | G26: 808390
A27: 6 | C27: Annual Allocation Factor for G&C Depreciation Expense | E27: (line 5 divided by line 1 col 3) | G27: =IF(G26=0,0,G26/G18) -> 0.003878650792 | L27: =G27 -> 0.003878650792
C29: TAXES OTHER THAN INCOME TAXES
A30: 7 | C30: Total Other Taxes | E30: Attach O, p 3, line 20 col 5 | G30: 1975179
A31: 8 | C31: Annual Allocation Factor for Other Taxes | E31: (line 7 divided by line 1 col 3) | G31: =IF(G30=0,0,G30/G18) -> 0.009476898023 | L31: =G31 -> 0.009476898023
A33: 9 | C33: Annual Allocation Factor for Expense | E33: Sum of line 4, 6, and 8 | L33: =L23+L27+L31 -> 0.05087957963
C35: INCOME TAXES
A36: 10 | C36: Total Income Taxes | E36: Attach O, p 3, line 27 col 5 | G36: 4314455
A37: 11 | C37: Annual Allocation Factor for Income Taxes | E37: (line 10 divided by line 2 col 3) | G37: =IF(G36=0,0,G36/G19) -> 0.03610876386 | L37: =G37 -> 0.03610876386
C39: RETURN
A40: 12 | C40: Return on Rate Base | E40: Attach O, p 3, line 28 col 5 | G40: 9663552
A41: 13 | C41: Annual Allocation Factor for Return on Rate Base | E41: (line 12 divided by line 2 col 3) | G41: =IF(G40=0,0,G40/G19) -> 0.080876708 | L41: =G41 -> 0.080876708
A43: 14 | C43: Annual Allocation Factor for Return | E43: Sum of line 11 and 13 | L43: =L37+L41 -> 0.1169854719
N61: Attachment GG
C62: =C5 -> Formula Rate calculation | G62: =G5 -> Rate Formula Template | N62: =N5 -> For the 12 months ended 12/31/14
G63: =G6 -> Utilizing Attachment O Data
N64: Page 2 of 2
G65: =G8 -> Montana-Dakota Utilities Co.
E67: Network Upgrade Charge Calculation By Project
C69: -1 | D69: -2 | E69: -3 | F69: -4 | G69: -5 | H69: -6 | I69: -7 | J69: -8 | K69: -9 | L69: -10 | M69: -11 | N69: -12
A70: Line No. | C70: Project Name | D70: MTEP Project Number | E70: Project Gross Plant | F70: Annual Allocation Factor for Expense | G70: Annual Expense Charge | H70: Project Net Plant | I70: Annual Allocation Factor for Return | J70: Annual Return Charge | K70: Project Depreciation Expense | L70: Annual Revenue Requirement | M70: True-Up Adjustment | N70: Network Upgrade Charge
E71: (Note C) | F71: (Page 1 line 9) | G71: (Col. 3 * Col. 4) | H71: (Note D) | I71: (Page 1 line 14) | J71: (Col. 6 * Col. 7) | K71: (Note E) | L71: (Sum Col. 5, 8 & 9) | M71: (Note F) | N71: Sum Col. 10 & 11 (Note G)
A73: 1a | C73: Heskett - Add. 230/115 kv Switchyard and 115kv Capacitor | D73: 1355 | E73: 8329746 | F73: =$L$33 -> 0.05087957963 | G73: =E73*F73 -> 423813.9749 | H73: =+E73-K73 -> 7876775 | I73: =$L$43 -> 0.1169854719 | J73: =H73*I73 -> 921468.2401 | K73: 452971 | L73: =G73+J73+K73 -> 1798253.215 | M73: 0 | N73: =L73+M73 -> 1798253.215
A74: 1b | C74: Project 2 | D74: P2 | E74: 0 | F74: =$L$33 -> 0.05087957963 | G74: =E74*F74 -> 0 | H74: 0 | I74: =$L$43 -> 0.1169854719 | J74: =H74*I74 -> 0 | K74: 0 | L74: =G74+J74+K74 -> 0 | M74: 0 | N74: =L74+M74 -> 0
A75: 1c | C75: Project 3 | D75: P3 | E75: 0 | F75: =$L$33 -> 0.05087957963 | G75: =E75*F75 -> 0 | H75: 0 | I75: =$L$43 -> 0.1169854719 | J75: =H75*I75 -> 0 | K75: 0 | L75: =G75+J75+K75 -> 0 | M75: 0 | N75: =L75+M75 -> 0
A93: 2 | C93: Annual Totals | L93: =SUM(L73:L92) -> 1798253.215 | M93: =SUM(M73:M92) -> 0 | N93: =SUM(N73:N92) -> 1798253.215
A95: 3 | C95: Rev. Req. Adj For Attachment O | L95: =L93 -> 1798253.215
A98: Note
A99: Letter
A100: A | C100: Gross Transmission Plant is that identified on page 2 line 2 of Attachment O and includes any sub lines 2a or 2b etc. and is inclusive of any CWIP included in rate base when authorized by FERC order less any prefunded AFUDC, if applicable.
A101: B | C101: Net Transmission Plant is that identified on page 2 line 14 of Attachment O and includes any sub lines 14a or 14b etc. and is inclusive of any CWIP included in rate base when authorized by FERC order less any prefunded AFUDC, if applicable.
A102: C | C102: Project Gross Plant is the total capital investment for the project calculated in the same method as the gross plant value in line 1 and includes CWIP in rate base less any prefunded AFUDC, if applicable. This value includes subsequent capital investments required to maintain the facilities to their original capabilities.
A103: D | C103: Project Net Plant is the Project Gross Plant Identified in Column 3 less the associated Accumulated Depreciation.
A104: E | C104: Project Depreciation Expense is the actual value booked for the project and included in the Depreciation Expense in Attachment O page 3 line 12.
A105: F | C105: True-Up Adjustment is included pursuant to a FERC approved methodology if applicable.
A106: G | C106: The Network Upgrade Charge is the value to be used in Schedule 26.
A107: H | C107: The Total General and Common Depreciation Expense excludes any depreciation expense directly associated with a project and thereby included in page 2 column 9.
